lending/lending_fUSD_20251111
["ID","MTS","AMOUNT","RATE_DAILY","PERIOD"]
[393628981,1762866632452,-1250.0,0.00030714,4]
[393628982,1762866632461,-1250.0,0.00030714,4]
[393628983,1762866632471,-1000.0,0.00030813,2]
[393628984,1762866632480,-919.0,0.00030813,2]
[393628985,1762866632492,-1969.43,0.00030814,2]
[393628986,1762866632507,-6064.69,0.00030814,2]
[393628987,1762866632525,-150.99,0.00030814,2]
[393628988,1762866632534,-8420.01,0.00030814,2]
[393628989,1762866632545,-9999.99,0.00030814,2]
[393628990,1762866632555,-18615.47,0.00030814,2]
[393628991,1762866632565,-9999.99,0.00030814,2]
[393628992,1762866632574,-999.99,0.00030814,2]
[393628993,1762866632583,-499.99,0.00030814,2]
[393628994,1762866632592,-500.0,0.000309,5]
[393628995,1762866632602,-8134.15,0.00030943,2]
[393628996,1762866632611,-150.0,0.00031,2]
[393628997,1762866632619,-500.0,0.00031014,2]
[393628998,1762866632629,-157.38,0.00031125,80]
[393628999,1762866632637,-152.0,0.0003131,3]
[393629000,1762866632646,-500.0,0.00032399,2]
[393629001,1762866632655,-223.76629074,0.00032399,2]
[393629002,1762866632663,-29196.88710125,0.000324,2]
[393629003,1762866632674,-58362.75826839,0.000324,2]
[393629004,1762866632684,-17686.7085926,0.000324,2]
[393629005,1762866632695,-977.3327285,0.000324,2]
[393629006,1762866632705,-334.33830891,0.000324,2]
[393629008,1762866632716,-2430.63083125,0.000324,2]
[393629010,1762866632727,-1236.47662838,0.000324,2]
[393629012,1762866632738,-22002.86754072,0.000324,2]
[393629014,1762866632749,-504.6181,0.00032712,10]
[393629016,1762866632757,-344.50359387,0.00032873,2]
[393629017,1762866632766,-500.0,0.00032873,5]
[393629019,1762866632775,-18699.0,0.00033029,2]
[393629021,1762866632784,-560.0,0.00033077,3]
[393629024,1762866632793,-660.44521225,0.00033195,2]
[393629026,1762866632802,-2240.0,0.00033216,3]
[393629028,1762866632811,-500.0,0.00033262,2]
[393629030,1762866632820,-7704.72,0.00033295,2]
[393629032,1762866632829,-5516.0,0.000334,3]
[393629034,1762866632839,-356.63272672,0.00033773,5]
[393629036,1762866632847,-42177.32288512,0.000338,2]
[393629038,1762866632856,-660.44521221,0.00033934,2]
[393629040,1762866632865,-6772.36744603,0.00034096,2]
[393629042,1762866632875,-500.0,0.00034167,7]
[393629044,1762866632883,-189.82445703,0.00034167,7]
[393629045,1762866632894,-349.36936138,0.00034167,7]
[393629046,1762866632904,-96000.0,0.00034168,30]
[393629047,1762866632913,-3088.33,0.00034332,2]
[393629048,1762866632923,-5516.0,0.000344,5]
[393629049,1762866632933,-660.44521221,0.00034673,2]
[393629050,1762866632942,-163.41,0.0003479,2]
[393629051,1762866632950,-191.005916,0.00035,2]
[393629052,1762866632959,-345.87642383,0.00035101,2]
[393629053,1762866632968,-249.48110941,0.00035376,2]
[393629054,1762866632978,-660.44521221,0.00035412,2]
[393629055,1762866632987,-152.0,0.00035624,4]
[393629056,1762866633000,-783.0,0.00035624,3]
[393629057,1762866633009,-158.44453773,0.00035866,15]
[393629058,1762866633019,-3135.0,0.00035924,3]
[393629059,1762866633028,-1000.0,0.00035966,30]
[393629060,1762866633039,-1000.0,0.00035966,30]
[393629061,1762866633049,-1000.0,0.00035966,30]
[393629062,1762866633059,-1000.0,0.00035966,30]
[393629063,1762866633068,-1000.0,0.00035966,30]
[393629064,1762866633078,-1000.0,0.00035966,30]
[393629065,1762866633087,-1096.46520902,0.00035966,30]
[393629066,1762866633096,-1101.97494401,0.00035966,30]
[393629067,1762866633106,-1099.63762039,0.00035966,30]
[393629068,1762866633118,-1000.0,0.00035966,30]
[393629069,1762866633128,-1245.36409428,0.00035966,30]
[393629070,1762866633138,-1000.0,0.00035966,30]
[393629071,1762866633148,-173.43695303,0.00035989,30]
[393629072,1762866633158,-500.0,0.00036065,5]
[393629073,1762866633167,-660.44521221,0.00036151,2]
[393629074,1762866633176,-2500.0,0.00036242,2]
[393629075,1762866633186,-167.85193,0.00036249,2]
[393629076,1762866633195,-160.276718,0.00036249,2]
[393629077,1762866633204,-191.005916,0.00036249,2]
[393629078,1762866633214,-500.0,0.00036322,30]
[393629079,1762866633223,-1725.16456899,0.00036484,2]
[393629080,1762866633232,-1725.16456899,0.00036841,2]
[393629081,1762866633242,-660.44521221,0.00036889,2]
[393629082,1762866633252,-80.62532636,0.00037,2]
[393629083,1762866633264,-716.73467364,0.00037,2]
[393629084,1762866633273,-1725.16456899,0.00037056,2]
[393629085,1762866633283,-1.51705609,0.00037192,2]
[393629086,1762866633294,-298.48294391,0.00037192,2]
[393629087,1762866633304,-1725.16456899,0.00037403,2]
[393629088,1762866633313,-828.675,0.00037493,2]
[393629089,1762866633323,-906.0,0.00037493,2]
[393629090,1762866633332,-2143.0,0.00037493,2]
[393629091,1762866633341,-560.0,0.00037493,2]
[393629092,1762866633351,-5175.19817934,0.00037493,2]
[393629093,1762866633362,-511.67882066,0.00037493,2]
[393629094,1762866633372,-167.85193,0.00037497,2]
[393629095,1762866633381,-160.276718,0.00037497,2]
[393629096,1762866633391,-191.005916,0.00037497,2]
[393629097,1762866633400,-660.44521221,0.00037628,2]
[393629098,1762866633409,-594.00869246,0.00037643,2]
[393629105,1762866638233,-172.03,0.00025,2]
[393629107,1762866638243,-165.29127345,0.00037493,2]
[393629109,1762866638256,-342.53067706,0.00037493,2]
[393629110,1762866638289,-1568.96455766,0.00037493,2]
[393629111,1762866638347,-409.4016062,0.00037493,2]
[393629112,1762866638359,-581.04247896,0.00037493,2]
[393629113,1762866638371,-561.32040667,0.00037493,2]
[393629114,1762866638380,-77.80420833,0.00037643,2]
[393629115,1762866638458,-328.18709921,0.00037643,2]
[393629116,1762866638468,-358.0,0.00037699,120]
[393629117,1762866638480,-790.10545181,0.00037755,2]
[393629185,1762866640310,-712.4155978,0.00037755,2]
[393629186,1762866640326,-222.64351938,0.00037755,2]
[393629187,1762866640337,-1000.0,0.000379,7]
[393629188,1762866640350,-1000.0,0.00038004,2]
[393629189,1762866640361,-1725.16456899,0.00038026,2]
[393629190,1762866640374,-197.0,0.00038162,7]
[393629191,1762866640385,-358.0,0.00038218,2]
[393629192,1762866640396,-500.0,0.00038229,7]
[393629193,1762866640407,-1725.16456899,0.00038272,2]
[393629194,1762866640417,-500.0,0.00038297,7]
[393629195,1762866640428,-500.0,0.00038297,7]
[393629196,1762866640439,-168.0,0.00038353,2]
[393629197,1762866640452,-500.0,0.00038356,2]
[393629198,1762866640461,-500.0,0.00038356,2]
[393629199,1762866640471,-500.0,0.00038356,2]
[393629200,1762866640481,-500.0,0.00038356,2]
[393629201,1762866640491,-500.0,0.00038356,2]
[393629202,1762866640503,-500.0,0.00038356,2]
[393629203,1762866640512,-500.0,0.00038356,2]
[393629204,1762866640522,-500.0,0.00038356,2]
[393629205,1762866640531,-500.0,0.00038356,2]
[393629206,1762866640541,-500.0,0.00038356,2]
[393629207,1762866640551,-500.0,0.00038356,2]
[393629208,1762866640560,-500.0,0.00038356,2]
[393629209,1762866640570,-500.0,0.00038356,2]
[393629210,1762866640579,-500.0,0.00038356,2]
[393629211,1762866640589,-500.0,0.00038356,2]
[393629212,1762866640599,-500.0,0.00038356,2]
[393629213,1762866640608,-500.0,0.00038356,2]
[393629214,1762866640618,-500.0,0.00038356,2]
[393629215,1762866640627,-500.0,0.00038356,2]
[393629216,1762866640638,-500.0,0.00038356,2]
[393629220,1762866640808,-500.0,0.00038356,2]
[393629222,1762866640818,-500.0,0.00038356,2]
[393629223,1762866640827,-177.00855541,0.00038356,2]
[393629224,1762866640836,-500.0,0.00038356,2]
[393629225,1762866640846,-660.44521221,0.00038367,2]
[393629226,1762866640855,-500.0,0.00038407,2]
[393629227,1762866640864,-500.0,0.00038407,2]
[393629228,1762866640874,-500.0,0.00038407,2]
[393629229,1762866640883,-298.36693115,0.00038407,2]
[393629230,1762866640892,-12322.24,0.00038408,2]
[393629231,1762866640902,-1041.65,0.00038408,2]
[393629232,1762866640911,-1725.16456899,0.0003853,2]
[393629233,1762866640920,-197.0,0.00038627,2]
[393629234,1762866640930,-500.0,0.000387,120]
[393629235,1762866640939,-167.85193,0.00038746,2]
[393629236,1762866640948,-166.908883,0.00038746,2]
[393629237,1762866640958,-160.276718,0.00038746,2]
[393629238,1762866640967,-191.005916,0.00038746,2]
[393629239,1762866640977,-1725.16456899,0.00038825,2]
[393629240,1762866640986,-397.0,0.00038852,5]
[393629241,1762866640996,-1681.0,0.000389,2]
[393629242,1762866641006,-191.005916,0.000389,60]
[393629243,1762866641015,-1000.0,0.000389,7]
[393629244,1762866641024,-1725.16456899,0.00038954,2]
[393629245,1762866641035,-7761.0,0.00039,2]
[393629246,1762866641048,-460.91,0.00039,7]
[393629247,1762866641058,-660.44521221,0.00039106,2]
[393629248,1762866641067,-160.276718,0.00039175,60]
[393629249,1762866641076,-191.005916,0.00039175,60]
[393629250,1762866641087,-1725.16456899,0.00039352,2]
[393629251,1762866641096,-167.85193,0.0003945,60]
[393629252,1762866641106,-160.276718,0.0003945,60]
[393629253,1762866641115,-191.005916,0.0003945,60]
[393629254,1762866641126,-1206.87,0.00039455,2]
[393629255,1762866641135,-181.57,0.00039455,2]
[393629256,1762866641145,-549.62,0.00039455,2]
[393629257,1762866641155,-416.14,0.00039455,2]
[393629258,1762866641164,-440.08,0.00039455,2]
[393629259,1762866641174,-177.09,0.00039455,2]
[393629260,1762866641183,-150.0,0.00039455,2]
[393629261,1762866641193,-150.0,0.00039455,2]
[393629262,1762866641202,-416.14,0.00039455,2]
[393629263,1762866641211,-549.62,0.00039455,2]
[393629264,1762866641221,-177.09,0.00039455,2]
[393629265,1762866641230,-150.0,0.00039455,2]
[393629266,1762866641240,-415.08,0.00039455,2]
[393629267,1762866641249,-1206.87,0.00039455,2]
[393629268,1762866641259,-581.83,0.00039455,2]
[393629269,1762866641268,-150.0,0.00039455,2]
[393629270,1762866641277,-177.09,0.00039455,2]
[393629271,1762866641287,-549.32,0.00039455,2]
[393629272,1762866641297,-337.37,0.00039455,2]
[393629273,1762866641306,-169.21,0.00039455,2]
[393629274,1762866641315,-169.21,0.00039455,2]
[393629275,1762866641325,-169.21,0.00039455,2]
[393629276,1762866641334,-200.0,0.00039592,20]
[393629277,1762866641343,-150.0,0.000396,60]
[393629278,1762866641352,-1024.38774953,0.000396,120]
[393629279,1762866641361,-1725.16456899,0.00039647,2]
[393629280,1762866641371,-1000.0,0.0003965,7]
[393629281,1762866641380,-332.83509575,0.0003965,2]
[393629282,1762866641390,-183.84,0.00039678,14]
[393629283,1762866641399,-162.57231788,0.00039686,7]
[393629284,1762866641408,-200.0,0.00039717,2]
[393629285,1762866641417,-150.0,0.00039723,2]
[393629286,1762866641427,-169.183,0.00039723,2]
[393629287,1762866641436,-150.219,0.00039723,2]
[393629288,1762866641446,-150.0,0.00039723,2]
[393629289,1762866641455,-150.0,0.00039723,2]
[393629290,1762866641464,-167.85193,0.00039725,60]
[393629291,1762866641474,-160.276718,0.00039725,60]
[393629292,1762866641483,-191.005916,0.00039725,60]
[393629293,1762866641492,-309.06025452,0.00039726,5]
[393629294,1762866641502,-5000.0,0.00039741,30]
[393629295,1762866641511,-200.0,0.000398,19]
[393629296,1762866641520,-103722.786296,0.00039821,4]
[393629297,1762866641530,-500.0,0.0003983,7]
[393629298,1762866641540,-2000.0,0.0003983,2]
[393629299,1762866641549,-960.811,0.0003983,2]
[393629300,1762866641559,-228190.129852,0.00039831,4]
[393629301,1762866641568,-600.0,0.00039836,15]
[393629302,1762866641577,-600.0,0.00039836,15]
[393629303,1762866641586,-600.0,0.00039836,15]
[393629304,1762866641595,-600.0,0.00039836,15]
[393629305,1762866641604,-600.0,0.00039836,15]
[393629306,1762866641613,-600.0,0.00039836,15]
[393629307,1762866641622,-600.0,0.00039836,15]
[393629308,1762866641632,-600.0,0.00039836,15]
[393629309,1762866641641,-600.0,0.00039836,15]
[393629310,1762866641650,-600.0,0.00039836,15]
[393629311,1762866641660,-158.25209266,0.0003984,7]
[393629312,1762866641669,-2053.2492084,0.0003984,20]
[393629313,1762866641679,-1358.2336984,0.0003984,120]
[393629314,1762866641688,-4941.0,0.00039841,5]
[393629315,1762866641697,-2110.58632994,0.00039841,2]
[393629316,1762866641707,-33287.216,0.00039841,2]
[393629317,1762866641716,-3006.4748,0.00039841,2]
[393629318,1762866641725,-420000.0,0.00039841,2]
[393629319,1762866641734,-1000.0,0.00039841,2]
[393629320,1762866641744,-660.44521221,0.00039845,15]
[393629321,1762866641754,-154.35833183,0.00039872,7]
[393629322,1762866641763,-150.0,0.00039872,7]
[393629323,1762866641772,-500.0,0.00039872,2]
[393629324,1762866641781,-500.0,0.00039872,7]
[393629325,1762866641790,-500.0,0.00039872,7]
[393629326,1762866641799,-500.0,0.00039872,7]
[393629327,1762866641809,-500.0,0.00039872,7]
[393629328,1762866641819,-150.0,0.00039872,7]
[393629329,1762866641829,-254.07529901,0.00039872,7]
[393629330,1762866641840,-206.7102888,0.00039872,7]
[393629331,1762866641850,-500.0,0.00039934,30]
[393629332,1762866641870,-151.0,0.00039937,14]
[393629333,1762866641884,-152.0,0.00039937,5]
[393629334,1762866641895,-262347.2034928,0.0003994,2]
[393629335,1762866641905,-262.7101297,0.0003994,2]
[393629336,1762866641915,-2000.0,0.0003994,2]
[393629337,1762866641924,-1418.853718,0.0003994,2]
[393629338,1762866641934,-64365.6331786,0.0003994,2]
[393629339,1762866641943,-75225.0954086,0.0003994,2]
[393629340,1762866641952,-4052.22,0.00039941,56]
[393629341,1762866641962,-297.548,0.00039941,56]
[393629342,1762866641971,-900.0969414,0.00039941,2]
[393629343,1762866641980,-21931.1634098,0.00039941,2]
[393629344,1762866641989,-3622.260115,0.00039941,2]
[393629345,1762866641999,-1764.5303451,0.00039941,2]
[393629346,1762866642008,-245.062125,0.00039941,30]
[393629347,1762866642019,-151.0,0.00039941,120]
[393629348,1762866642029,-151.0,0.00039941,120]
[393629349,1762866642039,-151.0,0.00039941,120]
[393629350,1762866642051,-151.0,0.00039941,120]
[393629351,1762866642061,-151.0,0.00039941,120]
[393629352,1762866642070,-151.0,0.00039941,120]
[393629353,1762866642080,-151.0,0.00039941,120]
[393629354,1762866642092,-151.0,0.00039941,120]
[393629355,1762866642102,-257.657794,0.00039941,120]
[393629356,1762866642113,-151.0,0.00039941,120]
[393629357,1762866642125,-151.0,0.00039941,120]
[393629358,1762866642135,-200.0,0.00039941,2]
[393629359,1762866642144,-173.500848,0.00039941,120]
[393629360,1762866642154,-13984.49388968,0.00039941,120]
[393629361,1762866642163,-200.0,0.00039941,2]
[393629362,1762866642173,-500.0,0.00039941,7]
[393629363,1762866642183,-1692.2385,0.00039941,2]
[393629364,1762866642192,-500.0,0.00039941,7]
[393629365,1762866642202,-151.0,0.00039942,14]
[393629366,1762866642211,-150.0,0.00039944,20]
[393629367,1762866642221,-5155.78901987,0.00039945,29]
[393629368,1762866642230,-151.0,0.00039945,90]
[393629369,1762866642240,-151.0,0.00039945,90]
[393629370,1762866642250,-151.0,0.00039945,120]
[393629371,1762866642259,-151.0,0.00039945,120]
[393629372,1762866642269,-151.0,0.00039945,120]
[393629373,1762866642278,-166.501391,0.00039945,120]
[393629374,1762866642287,-151.0,0.00039945,120]
[393629375,1762866642297,-151.0,0.00039945,120]
[393629376,1762866642309,-240.414561,0.00039945,120]
[393629377,1762866642318,-151.0,0.00039945,120]
[393629378,1762866642327,-170.165682,0.00039945,120]
[393629379,1762866642336,-151.0,0.00039945,120]
[393629380,1762866642346,-151.0,0.00039945,120]
[393629381,1762866642355,-151.0,0.00039945,120]
[393629382,1762866642364,-151.0,0.00039945,120]
[393629383,1762866642373,-151.0,0.00039945,120]
[393629384,1762866642382,-151.0,0.00039945,120]
[393629385,1762866642392,-151.0,0.00039945,120]
[393629386,1762866642401,-164.74406,0.00039945,21]
[393629387,1762866642410,-164.74406,0.00039945,21]
[393629388,1762866642419,-164.74406,0.00039945,21]
[393629389,1762866642428,-164.74406,0.00039945,21]
[393629390,1762866642437,-164.74406,0.00039945,21]
[393629391,1762866642447,-164.74406,0.00039945,21]
[393629392,1762866642456,-164.74406,0.00039945,21]
[393629393,1762866642466,-296.039985,0.00039945,120]
[393629394,1762866642475,-164.74406,0.00039945,21]
[393629395,1762866642485,-164.74406,0.00039945,21]
[393629396,1762866642495,-164.74406,0.00039945,21]
[393629397,1762866642505,-164.74406,0.00039945,21]
[393629398,1762866642515,-164.74406,0.00039945,21]
[393629399,1762866642526,-164.74406,0.00039945,21]
[393629400,1762866642535,-164.74406,0.00039945,21]
[393629401,1762866642545,-164.74406,0.00039945,21]
[393629402,1762866642554,-164.74406,0.00039945,21]
[393629403,1762866642563,-164.74406,0.00039945,21]
[393629404,1762866642572,-164.74406,0.00039945,21]
[393629405,1762866642581,-164.74406,0.00039945,21]
[393629406,1762866642590,-164.744064,0.00039945,21]
[393629407,1762866642599,-153.601214,0.00039945,60]
[393629408,1762866642608,-151.0,0.00039945,120]
[393629409,1762866642617,-151.0,0.00039945,120]
[393629410,1762866642626,-285.150355,0.00039945,120]
[393629411,1762866642635,-208.928791,0.00039945,2]
[393629412,1762866642644,-151.0,0.00039945,120]
[393629413,1762866642654,-151.0,0.00039945,120]
[393629414,1762866642665,-151.0,0.00039945,120]
[393629415,1762866642675,-151.0,0.00039945,120]
[393629416,1762866642685,-153.008677,0.00039945,120]
[393629417,1762866642695,-151.0,0.00039945,120]
[393629418,1762866642704,-151.0,0.00039945,120]
[393629419,1762866642713,-151.0,0.00039945,120]
[393629420,1762866642723,-151.0,0.00039945,120]
[393629421,1762866642733,-151.0,0.00039945,120]
[393629422,1762866642742,-151.0,0.00039945,120]
[393629423,1762866642752,-151.0,0.00039945,120]
[393629424,1762866642761,-151.0,0.00039945,120]
[393629425,1762866642770,-151.0,0.00039945,120]
[393629426,1762866642779,-151.0,0.00039945,120]
[393629427,1762866642789,-153.801165,0.00039945,120]
[393629428,1762866642798,-151.0,0.00039945,120]
[393629429,1762866642807,-151.0,0.00039945,120]
[393629430,1762866642816,-151.0,0.00039945,120]
[393629431,1762866642825,-151.0,0.00039945,120]
[393629432,1762866642835,-151.0,0.00039945,120]
[393629433,1762866642844,-166.596624,0.00039945,120]
[393629434,1762866642853,-157.361959,0.00039945,120]
[393629435,1762866642862,-151.0,0.00039945,120]
[393629436,1762866642871,-151.0,0.00039945,120]
[393629437,1762866642880,-151.0,0.00039945,120]
[393629438,1762866642890,-257.799915,0.00039945,120]
[393629439,1762866642899,-165.664254,0.00039945,120]
[393629440,1762866642908,-229.219419,0.00039945,120]
[393629441,1762866642917,-151.0,0.00039945,120]
[393629442,1762866642927,-151.0,0.00039945,120]
[393629443,1762866642937,-151.0,0.00039945,120]
[393629444,1762866642946,-151.0,0.00039945,120]
[393629445,1762866642955,-288.458231,0.00039945,120]
[393629446,1762866642965,-285.91276,0.00039945,120]
[393629447,1762866642974,-196.232164,0.00039945,120]
[393629448,1762866642984,-151.0,0.00039945,120]
[393629449,1762866642993,-151.0,0.00039945,120]
[393629451,1762866643002,-151.0,0.00039945,120]
[393629453,1762866643012,-151.0,0.00039945,120]
[393629454,1762866643021,-151.0,0.00039945,120]
[393629455,1762866643031,-151.0,0.00039945,120]
[393629456,1762866643041,-279.284647,0.00039945,120]
[393629457,1762866643052,-151.0,0.00039945,120]
[393629458,1762866643062,-178.925692,0.00039945,120]
[393629459,1762866643072,-151.0,0.00039945,120]
[393629460,1762866643083,-151.0,0.00039945,120]
[393629461,1762866643092,-151.0,0.00039945,120]
[393629462,1762866643102,-154.330619,0.00039945,120]
[393629463,1762866643112,-151.0,0.00039945,120]
[393629464,1762866643122,-151.0,0.00039945,120]
[393629465,1762866643132,-151.0,0.00039945,120]
[393629466,1762866643141,-151.0,0.00039945,120]
[393629467,1762866643150,-151.0,0.00039945,120]
[393629468,1762866643159,-202.658246,0.00039945,120]
[393629469,1762866643169,-151.0,0.00039945,120]
[393629470,1762866643178,-151.0,0.00039945,120]
[393629471,1762866643188,-151.0,0.00039945,120]
[393629472,1762866643197,-151.0,0.00039945,120]
[393629473,1762866643206,-151.0,0.00039945,120]
[393629474,1762866643216,-172.266868,0.00039945,120]
[393629475,1762866643225,-151.0,0.00039945,120]
[393629476,1762866643235,-151.0,0.00039945,120]
[393629477,1762866643244,-151.0,0.00039945,120]
[393629478,1762866643253,-151.0,0.00039945,120]
[393629479,1762866643262,-151.0,0.00039945,120]
[393629480,1762866643271,-151.0,0.00039945,120]
[393629481,1762866643280,-151.0,0.00039945,120]
[393629482,1762866643289,-248.368719,0.00039945,120]
[393629483,1762866643298,-151.0,0.00039945,120]
[393629484,1762866643307,-151.0,0.00039945,120]
[393629485,1762866643316,-151.0,0.00039945,120]
[393629486,1762866643325,-151.0,0.00039945,120]
[393629487,1762866643335,-151.0,0.00039945,120]
[393629489,1762866643344,-158.47328,0.00039945,120]
[393629491,1762866643353,-151.0,0.00039945,120]
[393629493,1762866643363,-151.0,0.00039945,120]
[393629494,1762866643372,-151.0,0.00039945,120]
[393629495,1762866643381,-151.0,0.00039945,120]
[393629496,1762866643391,-151.0,0.00039945,120]
[393629497,1762866643400,-151.0,0.00039945,120]
[393629498,1762866643409,-151.0,0.00039945,120]
[393629499,1762866643419,-151.0,0.00039945,120]
[393629500,1762866643428,-151.0,0.00039945,120]
[393629501,1762866643436,-151.0,0.00039945,120]
[393629502,1762866643447,-151.0,0.00039945,120]
[393629503,1762866643458,-151.0,0.00039945,120]
[393629504,1762866643467,-151.0,0.00039945,120]
[393629505,1762866643476,-151.0,0.00039945,120]
[393629506,1762866643486,-151.0,0.00039945,120]
[393629507,1762866643495,-236.575348,0.00039945,120]
[393629508,1762866643506,-151.0,0.00039945,120]
[393629509,1762866643516,-151.0,0.00039945,120]
[393629510,1762866643526,-151.0,0.00039945,120]
[393629511,1762866643535,-151.0,0.00039945,120]
[393629512,1762866643544,-151.0,0.00039945,120]
[393629513,1762866643554,-151.0,0.00039945,120]
[393629514,1762866643564,-151.0,0.00039945,120]
[393629515,1762866643573,-151.0,0.00039945,120]
[393629516,1762866643582,-151.0,0.00039945,120]
[393629517,1762866643591,-151.0,0.00039945,120]
[393629518,1762866643601,-151.0,0.00039945,120]
[393629519,1762866643610,-151.0,0.00039945,120]
[393629520,1762866643620,-151.0,0.00039945,120]
[393629521,1762866643632,-151.0,0.00039945,120]
[393629522,1762866643643,-151.0,0.00039945,120]
[393629523,1762866643652,-151.0,0.00039945,120]
[393629524,1762866643662,-154.892027,0.00039945,120]
[393629525,1762866643672,-151.0,0.00039945,120]
[393629526,1762866643682,-151.0,0.00039945,120]
[393629527,1762866643692,-151.0,0.00039945,120]
[393629528,1762866643701,-151.0,0.00039945,120]
[393629529,1762866643711,-195.220456,0.00039945,120]
[393629530,1762866643721,-151.0,0.00039945,120]
[393629531,1762866643730,-151.0,0.00039945,120]
[393629532,1762866643742,-151.0,0.00039945,120]
[393629533,1762866643751,-155.955535,0.00039945,120]
[393629534,1762866643760,-262.270207,0.00039945,120]
[393629535,1762866643769,-262.270207,0.00039945,120]
[393629536,1762866643779,-262.270207,0.00039945,120]
[393629537,1762866643787,-151.0,0.00039945,120]
[393629538,1762866643798,-262.270207,0.00039945,120]
[393629539,1762866643807,-262.270207,0.00039945,120]
[393629540,1762866643818,-151.0,0.00039945,120]
[393629541,1762866643828,-262.270207,0.00039945,120]
[393629542,1762866643838,-151.0,0.00039945,120]
[393629543,1762866643848,-262.270207,0.00039945,120]
[393629544,1762866643859,-151.0,0.00039945,120]
[393629545,1762866643869,-151.0,0.00039945,30]
[393629546,1762866643879,-262.270207,0.00039945,120]
[393629547,1762866643888,-151.0,0.00039945,30]
[393629548,1762866643898,-262.270207,0.00039945,120]
[393629549,1762866643907,-262.270207,0.00039945,120]
[393629550,1762866643916,-262.270207,0.00039945,120]
[393629552,1762866643925,-151.0,0.00039945,120]
[393629553,1762866643934,-151.0,0.00039945,120]
[393629554,1762866643943,-262.270207,0.00039945,120]
[393629555,1762866643953,-151.0,0.00039945,120]
[393629556,1762866643962,-262.270207,0.00039945,120]
[393629557,1762866643971,-151.0,0.00039945,120]
[393629558,1762866643980,-262.270207,0.00039945,120]
[393629559,1762866643990,-151.0,0.00039945,120]
[393629560,1762866643999,-262.270207,0.00039945,120]
[393629561,1762866644009,-262.270207,0.00039945,120]
[393629562,1762866644019,-151.0,0.00039945,120]
[393629563,1762866644028,-151.0,0.00039945,120]
[393629564,1762866644043,-262.270207,0.00039945,120]
[393629565,1762866644052,-151.0,0.00039945,14]
[393629566,1762866644062,-151.0,0.00039945,120]
[393629567,1762866644071,-151.0,0.00039945,120]
[393629568,1762866644081,-262.270207,0.00039945,120]
[393629569,1762866644091,-151.0,0.00039945,14]
[393629570,1762866644099,-151.0,0.00039945,120]
[393629571,1762866644110,-153.123438,0.00039945,120]
[393629572,1762866644119,-262.270207,0.00039945,120]
[393629573,1762866644128,-151.0,0.00039945,14]
[393629574,1762866644138,-262.270211,0.00039945,120]
[393629575,1762866644147,-151.0,0.00039945,14]
[393629576,1762866644156,-151.0,0.00039945,14]
[393629577,1762866644165,-151.0,0.00039945,14]
[393629578,1762866644174,-151.0,0.00039945,14]
[393629579,1762866644184,-151.0,0.00039945,14]
[393629580,1762866644193,-151.0,0.00039945,120]
[393629581,1762866644203,-151.0,0.00039945,120]
[393629582,1762866644212,-151.0,0.00039945,120]
[393629583,1762866644222,-219.969981,0.00039945,120]
[393629584,1762866644231,-151.0,0.00039945,120]